Cogmind - Beta 15 @@@ ROGUE MODE // 2025.07.22 @ 16:55:42 Player: shapeshifter Result: Destroyed by Z4-7MK(R) with Subdweller Machine Gun Performance ------------- Evolutions (0) 0 Regions Visited (2) 400 Robots Destroyed (15) 75 Value Destroyed (241) 241 Prototype IDs (0) 0 Alien Tech Used (0) 0 Bonus (0) 0 TOTAL SCORE: 716 Bonus ------- None Cogmind --------- Core Integrity 0/250 Matter 276/300 Energy 250/250 System Corruption 2% Temperature Cool (71) Movement Treading (160) Location -10/Subcaves Parts ------- > --- POWER (1) -------- Ion Engine > --- PROPULSION (2) --- Light Treads Improved Treads > --- UTILITY (2) ------ Large Storage Unit > --- WEAPON (2) ------- (None) > --- INVENTORY (15) --- Ion Engine Light Treads Light Treads High-capacity Matter Pod (27) Subdweller Optics Medium Armor Plating Medium Armor Plating Medium Armor Plating Medium Armor Plating Peak State ------------ > --- POWER ------------ Ion Engine > --- PROPULSION ------- Improved Treads Improved Treads > --- UTILITY ---------- Small Storage Unit Seismic Detector > --- WEAPON ----------- Medium Laser Assault Rifle > --- INVENTORY -------- Light Ion Engine Aluminum Leg Aluminum Leg Wheel Compact Wheel High-capacity Matter Pod Improved Terrain Scanner Light Assault Rifle [Rating: 10] Favorites ----------- Power Ion Engine Engine Ion Engine Propulsion Improved Treads Treads Improved Treads Utility Small Storage Unit Device Seismic Detector Storage Small Storage Unit Weapon Assault Rifle Energy Gun Medium Laser Ballistic Gun Assault Rifle Build | -11 -10 -10 ------- Run | Yrd Mat Sub Slots Evolved . | . . . Power . | . . . Propulsion . | . . . Utility . | . . . Weapon . | . . . Parts Attached 18 | 8 7 3 Power 3 | 2 1 . Engine 3 | 2 1 . Core . | . . . Reactor . | . . . Propulsion 7 | 2 2 3 Treads 7 | 2 2 3 Leg . | . . . Wheel . | . . . Hover . | . . . Flight . | . . . Utility 5 | 2 3 . Device 3 | 1 2 . Storage 2 | 1 1 . Processor . | . . . Hackware . | . . . Protection . | . . . Artifact . | . . . Weapon 3 | 2 1 . Energy Gun 1 | 1 . . Energy Cannon . | . . . Ballistic Gun 2 | 1 1 . Ballistic Cannon . | . . . Launcher . | . . . Special Weapon . | . . . Impact Weapon . | . . . Slashing Weapon . | . . . Piercing Weapon . | . . . Special Melee Weapon . | . . . Unidentified Prototypes . | . . . Parts Lost 8 | . 2 6 Power . | . . . Propulsion 4 | . 1 3 Utility 1 | . . 1 Weapon 3 | . 1 2 Highest Loss Streak 3 | . 1 3 To Critical Strikes . | . . . Average Backups 8 | 4 8 10 Power . | . . 1 Propulsion 3 | 2 3 3 Utility 3 | . 3 5 Weapon . | . . . Tool/Special . | . . . Unused Backups 14 | . 7 7 Power 1 | . 1 . Propulsion 5 | . 4 1 Utility 7 | . 1 6 Weapon 1 | . 1 . Tool/Special . | . . . Average Slot Usage (%) 96 | . 99 82 Engine 14 | . 14 14 Treads 27 | . 27 28 Device 14 | . 14 14 Storage 14 | . 14 14 Energy Gun 7 | . 8 . Ballistic Gun 17 | . 19 10 Peak Build Rating 10 | 7 10 9 Average Rating 8 | 4 9 7 On Entrance 5 | . 7 9 Naked Turns . | . . . Heaviest Build 29 | 15 29 29 Greatest Support 46 | 40 46 43 Greatest Overweight (x) 1 | . . 1 Average Overweight (x) . | . . . Largest Inventory Capacity 15 | 8 15 15 Average Capacity 9 | 7 9 15 Most Carried 12 | 8 12 11 Average Carried 8 | 4 8 10 Final Capacity 15 | 8 15 15 Final Carried 11 | 7 11 9 Class Distribution -------------------- 100% | Mutant Dominant Class ---------------- Mutant | -10/Materials Mutant | -10/Subcaves Resources | -11 -10 -10 ----------- Run | Yrd Mat Sub Matter Collected 572 | 291 229 52 Remotely . | . . . Salvage Created 399 | 20 327 52 Parts 30 | 2 23 5 Haulers Intercepted 1 | . 1 . Recyclers Shooed 1 | . 1 . Parts Field Recycled . | . . . Retrieved Matter . | . . . Parts Self-Destructed 1 | . . 1 Prevented . | . . . Kills | -11 -10 -10 ------- Run | Yrd Mat Sub Combat Hostiles Destroyed 13 | . 12 1 Guns 13 | . 12 1 Classes Destroyed 5 | 1 3 1 Tunneler 1 | 1 . . Hauler 1 | . 1 . Swarmer 9 | . 9 . Grunt 3 | . 3 . Subdweller 1 | . . 1 Best Kill Streak 3 | 1 3 1 Combat Bots Only 3 | . 3 1 Max Kills in Single Turn 1 | 1 1 1 Gunslinging . | . . . Exploded . | . . . Melee . | . . . Uniques/NPCs Destroyed . | . . . Combat | -11 -10 -10 -------- Run | Yrd Mat Sub Hostile Shots Fired 157 | . 108 49 Missed 45 | . 36 9 Hits 112 | . 72 40 Projectile 112 | . 72 40 Critical Strikes 5 | . 2 3 Damage Taken 1439 | . 604 835 Core 262 | . 77 185 Absorbed by Shields . | . . . Core Remaining (%) 100 | 100 . . Volleys Fired 65 | 6 52 7 Largest 2 | 2 2 2 Hottest 70 | 70 70 40 Shots Fired 123 | 12 98 13 Gun 123 | 12 98 13 Cannon . | . . . Launcher . | . . . Special . | . . . Kinetic 79 | 6 60 13 Thermal 44 | 6 38 . Explosive . | . . . Electromagnetic . | . . . Robot Hit Streak 12 | 7 8 12 Robot Miss Streak 5 | 3 5 1 Penetration Max . | . . . Secondary Targets 2 | . 2 . Max Gunslinging Chain 1 | . 1 . Shots Hit Robots 67 | 7 48 12 Core Hits 22 | 2 18 2 Critical Kills . | . . . Critical Parts Destroyed 1 | . 1 . Critical Strikes 2 | . 2 . Burn 1 | . 1 . Destroy 1 | . 1 . Melee Attacks . | . . . Impact . | . . . Slashing . | . . . Piercing . | . . . Sneak Attacks . | . . . Combat Hostiles . | . . . Follow-up Attacks . | . . . Damage Inflicted 911 | 118 655 138 Guns 911 | 118 655 138 Cannons . | . . . Explosions . | . . . Melee . | . . . Ramming . | . . . Kinetic 584 | 56 390 138 Thermal 327 | 62 265 . Explosive . | . . . Electromagnetic . | . . . Impact . | . . . Slashing . | . . . Piercing . | . . . Highest Corruption 2 | . 2 2 Average Corruption 2 | . 2 2 Corruption Purged . | . . . Corruption Blocked . | . . . Effects 9 | . 5 4 Message Errors 3 | . 1 2 Heat Flow Errors 3 | . 2 1 Energy Discharges 1 | . . 1 Data Loss (major) 1 | . 1 . Misfires 1 | . 1 . Overload Shots . | . . . Overflow Damage . | . . . Projectiles . | . . . Explosions . | . . . Melee . | . . . Knockbacks . | . . . Impact . | . . . Kinetic . | . . . Secondary . | . . . Self-Inflicted Damage . | . . . Shots . | . . . Rammed . | . . . Targets Rammed . | . . . Kicked . | . . . Crushed . | . . . Highest Temperature 251 | 27 251 71 Average Temperature 49 | 11 54 71 Received Heat Transfer 120 | . 60 60 Siege Activations . | . . . Martial Activations . | . . . Shielding Activations . | . . . Robots Disrupted . | . . . Combat Hostiles . | . . . Robots Corrupted . | . . . Combat Hostiles . | . . . Parts Fried . | . . . Impact Corruptions . | . . . Robots Melted . | . . . Combat Hostiles . | . . . Parts Melted 3 | . 2 1 Heat Transferred 1036 | 185 851 . Parts Sabotaged . | . . . Parts Stolen . | . . . Parts Stripped . | . . . Power Chain Reactions . | . . . Alert | -11 -10 -10 ------- Run | Yrd Mat Sub Maximum Alert Level . | . . . Low Security (%) 100 | 100 100 . Level 1 . | . . . Level 2 . | . . . Level 3 . | . . . Level 4 . | . . . Level 5 . | . . . High Security . | . . . Max Security . | . . . Peak Influence 109 | 5 109 . Initial . | . . . Average 32 | . 36 . Influence Increases 343 | 5 338 . Destroy 0b10 Robot/C 240 | . 240 . Destroy 0b10 Robot/NC 10 | 5 5 . Destroy Leader 52 | . 52 . Successful Hack 11 | . 11 . Lose Combat Pursuer 30 | . 30 . Influence Decreases 343 | 5 319 19 Entered New Map 10 | . . 10 Time Decay 313 | 5 299 9 Lost Part 20 | . 20 . Squads Dispatched 2 | . 2 . Investigation 1 | . 1 . Extermination . | . . . Reinforcement 1 | . 1 . Assault . | . . . Garrison . | . . . Intercept . | . . . Searches Triggered . | . . . Construction Impeded . | . . . Haulers Reinforced . | . . . Active Scanning Responses . | . . . Cargo Convoy Interrupts . | . . . Stealth | -11 -10 -10 --------- Run | Yrd Mat Sub Distress Signals . | . . . Communications Jammed . | . . . Distress Signals . | . . . Times Spotted 19 | . 17 2 Peak Tracking Total 5 | . 5 2 Tactical Retreats 2 | . 2 . Traps | -11 -10 -10 ------- Run | Yrd Mat Sub Traps Triggered 1 | . 1 . Indirectly . | . . . Trap Hack Attempts . | . . . Triggered . | . . . Disarmed . | . . . Reprogrammed . | . . . Reused . | . . . Traps Extracted . | . . . Installed . | . . . Triggered . | . . . Machines | -11 -10 -10 ---------- Run | Yrd Mat Sub Machines Disabled . | . . . Max in Single Turn . | . . . Machines Repaired . | . . . Machines Dismantled . | . . . Machines Sabotaged . | . . . Overloaded Fab Kills . | . . . Hacking | -11 -10 -10 --------- Run | Yrd Mat Sub Machines Accessed 3 | . 3 . Terminals 2 | . 2 . Fabricators . | . . . Repair Stations . | . . . Recycling Units 1 | . 1 . Scanalyzers . | . . . Garrison Access . | . . . Total Hacks 11 | . 11 . Successful 6 | . 6 . Failed 5 | . 5 . Catastrophic 2 | . 2 . Database Lockouts . | . . . Manual 8 | . 8 . Terminals 9 | . 9 . Fabricators . | . . . Repair Stations . | . . . Recycling Units 2 | . 2 . Scanalyzers . | . . . Garrison Access . | . . . Terminal Hacks 3 | . 3 . Branch Access Points 1 | . 1 . Emergency Access Points 1 | . 1 . Registered Components 1 | . 1 . Fabricator Hacks . | . . . Repair Station Hacks . | . . . Recycling Unit Hacks 1 | . 1 . Report Inventory 1 | . 1 . Scanalyzer . | . . . Garrison Access Hacks . | . . . Unauthorized Hacks 2 | . 2 . Terminals 2 | . 2 . Botnet 2 | . 2 . Fabricators . | . . . Repair Stations . | . . . Recycling Units . | . . . Scanalyzers . | . . . Garrison Access . | . . . Data Cores Recovered . | . . . Used . | . . . Hacking Detections 3 | . 3 . Full Trace Events 2 | . 2 . Feedback Events . | . . . Feedback Blocked . | . . . Robot Schematics Acquired . | . . . Robots Built . | . . . Authchips . | . . . Time . | . . . Total Robot Build Rating . | . . . Part Schematics Acquired . | . . . Parts Built . | . . . Authchips . | . . . Time . | . . . Total Part Build Rating . | . . . Parts Repaired . | . . . Time . | . . . Parts Recycled . | . . . Recycled Matter . | . . . Retrieved Matter . | . . . Retrieved Components . | . . . Parts Scanalyzed . | . . . Part Schematics Acquired . | . . . Parts Damaged . | . . . Bothacking | -11 -10 -10 ------------ Run | Yrd Mat Sub Used RIF Installer . | . . . Robots Hacked . | . . . Non-combat . | . . . Combat . | . . . Robot Hacks Applied . | . . . Relay Couplers Released . | . . . Fabnet Peak Effective % . | . . . Robots Rewired . | . . . Allies Hacked . | . . . Hacks Repelled . | . . . Allies | -11 -10 -10 -------- Run | Yrd Mat Sub Total Allies . | . . . Largest Group . | . . . Highest-Rated Group . | . . . Highest-Rated Ally . | . . . Total Orders . | . . . Ally Attacks . | . . . Total Damage . | . . . Kills . | . . . Allies Corrupted . | . . . Allies Melted . | . . . Intel | -11 -10 -10 ------- Run | Yrd Mat Sub Active Infowar (turns) 1222 | 23 990 209 Sensors 238 | . 29 209 Terrain 186 | . 186 . Seismic 798 | 23 775 . Robot Analysis Total . | . . . Derelict Logs Recovered . | . . . Drone Launches . | . . . Drone Recoveries . | . . . Exploration | -11 -10 -10 ------------- Run | Yrd Mat Sub Turns Passed 1333 | 131 990 212 Spaces Moved 644 | 68 465 111 Core 16 | 16 . . Treads 628 | 52 465 111 Legs . | . . . Wheels . | . . . Hover . | . . . Flight . | . . . Fastest Speed 50 | 50 160 160 Average Speed 157 | 134 160 160 Slowest Speed 240 | 160 160 240 Overloaded Moves . | . . . Propulsion Burnouts . | . . . Robots Hopped . | . . . Potential Cave-ins . | . . . Cave-ins Triggered . | . . . Exploration Rate (%) 22 | 6 53 9 Regions Visited 2 Branch Regions 1 Pre-discovered Areas . | . . . Known Exits Taken . | . . . Unknown Exits Taken 2 | 1 1 . Scrap Searched . | . . . Spaces Dug . | . . . Terrain Destroyed . | . . . Melee . | . . . Projectile . | . . . AOE . | . . . Terrain Rammed . | . . . Walls Destroyed . | . . . Machines Disabled . | . . . Actions | -11 -10 -10 --------- Run | Yrd Mat Sub Total 847 | 95 620 132 Wait 77 | . 68 9 Move 642 | 67 464 111 Hop . | . . . Pick Up 30 | 14 15 1 Fast Attach 1 | . 1 . Attach 11 | 7 1 3 Detach . | . . . Swap 8 | 1 6 1 Drop 13 | . 13 . Fire 65 | 6 52 7 Melee . | . . . Ram . | . . . Kick . | . . . Crush . | . . . Escape Stasis . | . . . Rewire . | . . . Trap . | . . . Miscellaneous . | . . . Route ------- -11/Scrapyard -10/Materials (discovered 2 exits: Min / [*Sub]) -10/Subcaves History --------- Turn | Location | Event 6 | -11/Scrapyard | Discovered new exit (range 14) 132 | -11/Scrapyard | Entered Materials 313 | -10/Materials | Build established: Mutant 412 | -10/Materials | Discovered new exit (range 8) 666 | -10/Materials | Identified exit to Mines 1122 | -10/Materials | Entered Subcaves 1123 | -10/Subcaves | Approached by a straggling Scientist 1190 | -10/Subcaves | Core integrity fell below 50% 1232 | -10/Subcaves | Lost 3 parts (1n2w) 1261 | -10/Subcaves | Core integrity fell below 20% 1334 | -10/Subcaves | Destroyed by Z4-7MK(R) with Subdweller Machine Gun Last Messages --------------- 01199_ RZ-1R1(R) destroyed. 01200_ Subatomizers dissect the Sub. Optics. 01201_ Assault Rifle destroyed. 01207_ Z4-7MK(R) affixes Scrap Shield Fragment to Scrap Shield. 01228_ Subatomizers dissect the Sub. Optics. 01230_ Acquired 52 matter. 01235_ Tech Extrapolator violently self-destructs. 01248_ <,F5 60KG=WQGRK MXGV :PA7 01260_ Subatomizers dissect the Sub. Optics. 01263_ Acquired Sub. Optics. 01264_ Lgt. Treads destroyed. 01266_ Imp. Treads destroyed. 01270_ Subatomizers dissect the Disposable Heat Sink. 01303_ System corrupted: Energy discharge (-75). 01330_ S5-MKU(u) builds Twisted Machinery. 01331_ Sensor Array destroyed. 01333_ System corrupted: Heat flow error (+109). Map ----- +----------------------------------------------------+ | ?????????????????????????????????????????????????? | | ?????????????????????????????????????????????????? | | ?????????????????????????????????????????????????? | | ?????????????????????????????????????????????????? | | ?????????????????????????????????????????????????? | | ?????????????????????????????????????????????????? | | ?????????????????????????????????????????????????? | | ?????????????????????????????????????????????????? | | ?????????????????????????????????????????????????? | | ?????????????????????????????????????????????????? | | ?????????????????????????????????????????????????? | | ??????????????????????#?????? ???????????????????? | | ?????????????????????? ????? ??????????????????? | | ?????????????????????? ? ? ???????????????????? | | ?????????????????????? ? ??????????????????? | | ????????????????????? " #????? #???????????? | | ????????????????????#"" #???? #???????????? | | ?????????????????####u ##? #???????????? | | ?????????????????# """ ## #???????????? | | ?????????????????? "" " #???????????? | | ??????????????????? " "" " ?????????????? | | ????????????????????# " "" #??????????????? | | ?????????????????????# " " #???????????????? | | ?????????????????????# #???????????????? | | ?????????????????????# #????????????????? | | ???????????????????????# @ #????????????????????? | | ???????????????????????## #????????????????????? | | ???????????????????????## ##???????????????????? | | ???????????????????????# ##???###????????????? | | ???????????????????????#### #??## ##???????????? | | ??????????????????????????# #### ##??????????? | | ?????????????????????####?# R ## #??????????? | | ?????????????????????# ## ## ###??????????? | | ?????????????????????# ###??????????? | | ?????????????????????# ## ##?????????? | | ?????????????????????# ### #?????????? | | ?????????????????????# ### #?????????? | | ?????????????? #????# ### ##?????????? | | ??????????????? ##?# ### #?####??????????? | | ??????????????? ##?## #????#??????????? | | ???????????????? ## #?## ###??? ## ##?????? | | ????????????????? # ### ##?? ?????? | | ?????????????????# ??# ## ????? | | ????????????????## ???## ????? | | ????????????????# ####### #??????? | | ?????????????????# ### ## ##??????? | | ?????????????????# # ##?? #???????? | | ??????????????????# #????? ##???????? | | ????????????###???# # #???????????????? | | ???????????## ###?## ##### ???????????? | +----------------------------------------------------+ Best States ------------- Heat Dissipation 25 Energy Generation 10 Energy Capacity 250 Matter Stores 300 Matter Capacity 300 Sight Range 16 Robot Scan Range 14 Terrain Scan Range 14 Terrain Scan Density 10 Evasion (%) 50 Recoil Reduction 2 Item Schematics ----------------- None Robot Schematics ------------------ None Fabricated ------------ Nothing Repaired ---------- Nothing Alien Tech Used ----------------- None Achievements -------------- None Challenges ------------ None Game ------ Seed LargeSalvageAutopenetrator Manual? 0 Play Time 00:11:17 Cumulative 31.6 hours Start 2025.07.22 @ 16:45:53 End 2025.07.22 @ 16:55:42 Sessions 1 Manual Loads 0 Difficulty Rogue Special Mode None Game No. 81 Rogue 81 Adventurer 0 Explorer 0 Win Type - Total 0 Types 0/0/0/0/0/0/0/0/0/0 Lore% 32 Gallery% 32 Achievement% 25 Wizard Run 0 Options --------- Layout 1 ASCII 0 Keyboard 0 Movement Mouse Keybinds 0 Fullscreen 1 Font 24/Smallcaps Map View 50x35 Zoom Use 0% Tactical HUD 1 Map Filters NONE Filters NONE Steam 1 RUN: 0dee6407-1d49-493a-953f-2df3f6963618